Cogmind - Beta 16 @@@ ROGUE MODE // 2026.01.28 @ 22:49:14 Player: Merc Result: Destroyed by S-27 Virus with Autogun Performance ------------- Evolutions (4) 2000 Regions Visited (7) 1400 Robots Destroyed (58) 290 Value Destroyed (1673) 1673 Prototype IDs (8) 160 Alien Tech Used (0) 0 Bonus (1087) 1087 TOTAL SCORE: 6610 Bonus ------- High Alert Combat Kills 24 Follower Combat Kills 652 Entered DSFs 500 Friendly Fire -89 Cogmind --------- Core Integrity 0/850 Matter 300/300 Energy 99/100 System Corruption 5% Temperature Warm (147) Movement Core (50) Location -6/Extension Parts ------- > --- POWER (1) -------- (None) > --- PROPULSION (4) --- (None) > --- UTILITY (8) ------ (None) > --- WEAPON (2) ------- (None) > --- INVENTORY (5) ---- Myomer Leg Myomer Leg Gravmag System Advanced Assault Cannon Carbide Saw Peak State ------------ > --- POWER ------------ Fission Core > --- PROPULSION ------- Gravmag System Improved Gravmag System Improved Gravmag System Improved Gravmag System > --- UTILITY ---------- Improved Heat Sink Compact Battery Advanced Signal Interpreter ECM Suite Improved Weapon Shielding Improved Weapon Shielding Improved Light Armor Plating Layered Medium Armor Plating > --- WEAPON ----------- Gatling Laser Carbide Saw > --- INVENTORY -------- Myomer Leg Myomer Leg Gravmag System Gatling Laser Advanced Assault Cannon [Rating: 61] Favorites ----------- Power Heavy Ion Engine Engine Heavy Ion Engine Power Core Fission Core Propulsion Improved Treads Treads Improved Treads Leg Aluminum Leg Hover Unit Improved Gravmag System Utility Improved Sensor Array Device Improved Sensor Array Storage Medium Storage Unit Processor Signal Interpreter Protection Improved Weapon Shielding Weapon Heavy Assault Cannon Energy Gun Gatling Laser Energy Cannon Advanced Beam Cannon Ballistic Gun Light Assault Rifle Ballistic Cannon Heavy Assault Cannon Launcher Grenade Launcher Slashing Weapon Carbide Saw Build | -11 -10 -9 -8 -7 -7 -6 -6 ------- Run | Yrd Mat Mat Mat Fac DSF Fac Ext Slots Evolved 8 | . . 2 2 2 . 2 . Power . | . . . . . . . . Propulsion 2 | . . 1 1 . . . . Utility 6 | . . 1 1 2 . 2 . Weapon . | . . . . . . . . Parts Attached 70 | 7 5 18 13 2 5 . 20 Power 7 | 1 2 1 1 . 1 . 1 Engine 5 | 1 1 1 1 . 1 . . Core 2 | . 1 . . . . . 1 Reactor . | . . . . . . . . Propulsion 21 | 2 2 6 4 . . . 7 Treads 7 | . . 3 4 . . . . Leg 8 | 2 2 3 . . . . 1 Wheel . | . . . . . . . . Hover 6 | . . . . . . . 6 Flight . | . . . . . . . . Utility 27 | 1 1 6 6 2 3 . 8 Device 13 | . 1 4 4 1 2 . 1 Storage 4 | 1 . 1 1 . . . 1 Processor 4 | . . 1 1 1 . . 1 Hackware . | . . . . . . . . Protection 6 | . . . . . 1 . 5 Artifact . | . . . . . . . . Weapon 15 | 3 . 5 2 . 1 . 4 Energy Gun 3 | . . 1 . . . . 2 Energy Cannon 3 | . . 3 . . . . . Ballistic Gun 4 | 3 . . 1 . . . . Ballistic Cannon 3 | . . . 1 . 1 . 1 Launcher 1 | . . 1 . . . . . Special Weapon . | . . . . . . . . Impact Weapon . | . . . . . . . . Slashing Weapon 1 | . . . . . . . 1 Piercing Weapon . | . . . . . . . . Special Melee Weapon . | . . . . . . . . Unidentified Prototypes 4 | . . 3 1 . . . . Parts Lost 28 | . 2 3 1 . 9 . 13 Power 3 | . 1 . . . 1 . 1 Propulsion 8 | . . 1 1 . 2 . 4 Utility 11 | . . . . . 5 . 6 Weapon 6 | . 1 2 . . 1 . 2 Highest Loss Streak 13 | . 2 2 1 . 7 . 13 To Critical Strikes 2 | . . . . . 2 . . Average Backups 6 | 1 4 7 8 8 8 2 4 Power 1 | . 1 2 1 1 1 . . Propulsion 1 | . 1 2 1 1 . . 1 Utility 2 | . . 2 4 5 5 2 1 Weapon . | . . . 1 1 . . 1 Tool/Special . | . . . . . . . . Unused Backups 13 | . . 4 3 . 4 . 2 Power 5 | . . 1 2 . 2 . . Propulsion 4 | . . 1 . . 1 . 2 Utility 2 | . . 1 . . 1 . . Weapon 2 | . . 1 1 . . . . Tool/Special . | . . . . . . . . Average Slot Usage (%) 81 | . 98 96 89 81 62 6 70 Engine 6 | . 8 11 9 7 5 . . Core 2 | . 4 . . . . . 5 Treads 12 | . . 9 33 23 13 . . Leg 7 | . 28 22 . . . . . Hover 4 | . . . . . . . 17 Device 14 | . 13 17 17 20 15 6 9 Storage 8 | . 14 11 9 7 5 . 4 Processor 6 | . . 4 9 15 11 . 4 Protection 4 | . . . . . 3 . 15 Energy Gun 1 | . . 1 . . . . 4 Energy Cannon 1 | . . 7 3 . . . . Ballistic Gun 4 | . 28 3 . . . . . Ballistic Cannon 3 | . . . 6 7 5 . 1 Slashing Weapon 1 | . . . . . . . 3 Peak Build Rating 61 | 6 9 19 27 32 35 2 61 Average Rating 25 | 4 7 13 25 30 26 1 43 On Entrance 11 | . 6 7 19 25 32 1 2 Avg Prop Armor Cover (%) . | . . . . . . . . Naked Turns 9 | . . . . . 2 . 7 Heaviest Build 53 | 11 14 27 43 44 53 2 37 Greatest Support 92 | 20 20 69 92 66 66 3 39 Greatest Overweight (x) 16 | 3 . 1 . . 16 . 5 Average Overweight (x) . | . . . . . . . . Largest Inventory Capacity 15 | 8 8 10 15 15 15 5 5 Average Capacity 8 | 7 8 9 10 15 12 5 5 Most Carried 12 | 2 8 10 10 9 12 3 5 Average Carried 6 | 1 4 7 9 9 9 2 4 Final Capacity 15 | 8 8 10 15 15 5 5 5 Final Carried 10 | 2 8 9 10 9 2 3 5 Class Distribution -------------------- 100% | Mutant Dominant Class ---------------- Mutant | -10/Materials Mutant | -9/Materials Mutant | -8/Materials Mutant | -7/Factory Mutant | -7/DSF Mutant | -6/Factory Mutant | -6/Extension Resources | -11 -10 -9 -8 -7 -7 -6 -6 ----------- Run | Yrd Mat Mat Mat Fac DSF Fac Ext Matter Collected 1888 | 181 228 411 571 . 60 . 437 Remotely . | . . . . . . . . Salvage Created 1752 | . 228 581 407 . 72 . 464 Parts 100 | . 8 40 27 . 4 . 21 Haulers Intercepted 3 | . . 2 1 . . . . Recyclers Shooed 3 | . 1 . . . . . 2 Parts Field Recycled . | . . . . . . . . Retrieved Matter . | . . . . . . . . Parts Self-Destructed . | . . . . . . . . Prevented . | . . . . . . . . Parts Restored . | . . . . . . . . Kills | -11 -10 -9 -8 -7 -7 -6 -6 ------- Run | Yrd Mat Mat Mat Fac DSF Fac Ext Combat Hostiles Destroyed 41 | . 5 16 14 . 2 . 4 Guns 11 | . 5 2 . . . . 4 Cannons 21 | . . 5 14 . 2 . . AOE 7 | . . 7 . . . . . Classes Destroyed 13 | . 1 9 2 . 1 . . Worker 2 | . . 1 . . . . 1 Builder 3 | . . 1 . . . . 2 Tunneler 1 | . . . 1 . . . . Hauler 3 | . . 2 1 . . . . Recycler 4 | . . 2 . . . . 2 Operator 1 | . . 1 . . . . . Watcher 3 | . . 1 1 . . . 1 Swarmer 10 | . . 5 3 . . . 2 Grunt 23 | . 5 8 8 . . . 2 Brawler 1 | . . 1 . . . . . Sentry 4 | . . 2 2 . . . . Specialist 2 | . . . . . 2 . . Hunter 1 | . . . 1 . . . . Best Kill Streak 12 | . 2 12 8 . 1 . 3 Combat Bots Only 7 | . 2 5 7 . 1 . 2 Max Kills in Single Turn 3 | . 1 3 1 . 1 . 2 Gunslinging . | . . . . . . . . Exploded 2 | . . 2 . . . . . Melee . | . . . . . . . . Uniques/NPCs Destroyed . | . . . . . . . . Combat | -11 -10 -9 -8 -7 -7 -6 -6 -------- Run | Yrd Mat Mat Mat Fac DSF Fac Ext Hostile Shots Fired 629 | . 66 103 88 . 163 12 197 Missed 215 | . 20 32 31 . 68 5 59 Hits 414 | . 46 71 57 . 95 7 138 Melee 1 | . . 1 . . . . . Projectile 413 | . 46 70 57 . 95 7 138 Critical Strikes 16 | . 1 1 3 . 3 . 8 Actively Blocked 2 | . . . . . . . 2 Damage Taken 5952 | . 609 807 803 . 1604 124 2005 Core 1716 | . 118 115 81 . 548 124 730 Absorbed by Shields 222 | . . . . . 71 . 151 Redirected to Shielding 213 | . . . . . . . 213 Regen/Repaired (Parts) 170 | . . . 170 . . . . Core Remaining (%) 65 | 100 52 71 85 . 21 . . Volleys Fired 197 | . 38 45 61 . 17 . 36 Largest 2 | . 2 2 2 . 1 . 2 Hottest 160 | . 40 136 136 . 50 . 160 Shots Fired 277 | . 75 72 65 . 17 . 48 Gun 133 | . 75 15 . . . . 43 Cannon 125 | . . 38 65 . 17 . 5 Launcher 19 | . . 19 . . . . . Special . | . . . . . . . . Kinetic 166 | . 75 12 57 . 17 . 5 Thermal 92 | . . 41 8 . . . 43 Explosive 19 | . . 19 . . . . . Electromagnetic . | . . . . . . . . Robot Hit Streak 10 | . 10 6 7 . 5 . 10 Robot Miss Streak 6 | . 6 6 4 . 1 . 5 Penetration Max 1 | . . . 1 . 1 . . Secondary Targets 1 | . 1 . . . . . . Max Gunslinging Chain 1 | . 1 . . . . . . Shots Hit Robots 192 | . 49 36 43 . 13 . 51 Core Hits 111 | . 16 37 15 . 3 . 40 Critical Kills 2 | . . 2 . . . . . Critical Parts Destroyed . | . . . . . . . . Critical Strikes 15 | . . 2 6 . 1 . 6 Meltdown 2 | . . 2 . . . . . Blast 8 | . . . 6 . 1 . 1 Sever 5 | . . . . . . . 5 Melee Attacks 17 | . . . . . . . 17 Impact . | . . . . . . . . Slashing 17 | . . . . . . . 17 Piercing . | . . . . . . . . Sneak Attacks 4 | . . . . . . . 4 Combat Hostiles . | . . . . . . . . Follow-up Attacks . | . . . . . . . . Damage Inflicted 6570 | . 502 1570 2168 3 961 . 1366 Guns 1576 | . 502 102 . . . . 972 Cannons 3527 | . . 329 2168 . 961 . 69 Explosions 1139 | . . 1139 . . . . . Melee 325 | . . . . . . . 325 Ramming 3 | . . . . 3 . . . Kinetic 3647 | . 502 68 2047 . 961 . 69 Thermal 1456 | . . 363 121 . . . 972 Explosive 1139 | . . 1139 . . . . . Electromagnetic . | . . . . . . . . Impact . | . . . . . . . . Slashing 325 | . . . . . . . 325 Piercing . | . . . . . . . . Highest Corruption 5 | . 2 . . . . . 5 Average Corruption 4 | . 1 . . . . . 4 Corruption Purged . | . . . . . . . . Corruption Blocked . | . . . . . . . . Effects 16 | . . . . . . . 16 Message Errors 3 | . . . . . . . 3 Matter Fused 5 | . . . . . . . 5 Heat Flow Errors 3 | . . . . . . . 3 Energy Discharges 1 | . . . . . . . 1 Data Loss (minor) 1 | . . . . . . . 1 Data Loss (major) 1 | . . . . . . . 1 Weapon Failures 2 | . . . . . . . 2 Overload Shots . | . . . . . . . . Overflow Damage 321 | . . 8 301 . 3 . 9 Projectiles 305 | . . 1 301 . 3 . . Explosions 7 | . . 7 . . . . . Melee 9 | . . . . . . . 9 Knockbacks 24 | . . . 18 . 5 . 1 Impact . | . . . . . . . . Kinetic 23 | . . . 17 . 5 . 1 Secondary 1 | . . . 1 . . . . Self-Inflicted Damage 67 | . . 67 . . . . . Shots 3 | . . 3 . . . . . Rammed 1 | . . . . 1 . . . Targets Rammed 1 | . . . . 1 . . . Kicked . | . . . . . . . . Crushed . | . . . . . . . . Highest Temperature 541 | . 19 541 99 . . . 473 Average Temperature 165 | . 4 170 49 . . . 182 Received Heat Transfer 1385 | . 363 192 396 . 60 30 344 Effects 13 | . . 8 . . . . 5 Shutdowns 3 | . . 2 . . . . 1 Energy Bleed 3 | . . 3 . . . . . Interference 3 | . . 1 . . . . 2 Short Circuit 1 | . . . . . . . 1 Damage (minor) 1 | . . . . . . . 1 Damage (major) 2 | . . 2 . . . . . Siege Activations . | . . . . . . . . Martial Activations . | . . . . . . . . Shielding Activations . | . . . . . . . . Robots Disrupted . | . . . . . . . . Combat Hostiles . | . . . . . . . . Robots Corrupted . | . . . . . . . . Combat Hostiles . | . . . . . . . . Parts Fried . | . . . . . . . . Impact Corruptions . | . . . . . . . . Robots Melted 2 | . . 2 . . . . . Combat Hostiles 2 | . . 2 . . . . . Parts Melted 9 | . . 4 . . . . 5 Heat Transferred 3088 | . . 666 222 . . . 2200 Parts Sabotaged . | . . . . . . . . Parts Stolen . | . . . . . . . . Parts Stripped . | . . . . . . . . Power Chain Reactions . | . . . . . . . . Alert | -11 -10 -9 -8 -7 -7 -6 -6 ------- Run | Yrd Mat Mat Mat Fac DSF Fac Ext Maximum Alert Level 2 | . . 1 1 . . . 2 Low Security (%) 66 | 100 100 46 40 100 100 100 55 Level 1 30 | . . 53 59 . . . 35 Level 2 2 | . . . . . . . 8 Level 3 . | . . . . . . . . Level 4 . | . . . . . . . . Level 5 . | . . . . . . . . High Security . | . . . . . . . . Max Security . | . . . . . . . . Peak Influence 497 | . 50 364 316 109 80 42 497 Initial 149 | . . . 149 109 1 42 10 Average 128 | . 13 190 206 59 16 32 169 Influence Increases 2103 | . 150 554 435 3 152 . 809 Destroy 0b10 Robot/C 1180 | . 100 320 280 . 40 . 440 Destroy 0b10 Robot/NC 90 | . . 40 15 . 5 . 30 Destroy Leader 232 | . 20 86 74 . . . 52 Allied During Kill 57 | . . . . . . . 57 Successful Hack 21 | . . . 4 3 . . 14 Disable Machine 75 | . . 30 45 . . . . Destroy Structure 88 | . . 63 17 . 2 . 6 Partial Spotted 45 | . . . . . . . 45 Lose Combat Pursuer 315 | . 30 15 . . 105 . 165 Influence Decreases 1723 | . 150 200 549 241 74 58 451 Entered New Map 387 | . . . 205 131 1 38 12 Time Decay 1007 | . 150 170 334 110 . 20 223 Lost Part 243 | . . 30 10 . 73 . 130 Lost Ally 60 | . . . . . . . 60 Purge Threat 26 | . . . . . . . 26 Squads Dispatched 15 | . 1 3 2 2 2 . 5 Investigation 6 | . . . 1 2 . . 3 Extermination . | . . . . . . . . Reinforcement 9 | . 1 3 1 . 2 . 2 Assault . | . . . . . . . . Garrison . | . . . . . . . . Intercept . | . . . . . . . . Searches Triggered . | . . . . . . . . Construction Impeded 2 | . . 1 . . . . 1 Haulers Reinforced . | . . . . . . . . Active Scanning Responses . | . . . . . . . . Cargo Convoy Interrupts . | . . . . . . . . Stealth | -11 -10 -9 -8 -7 -7 -6 -6 --------- Run | Yrd Mat Mat Mat Fac DSF Fac Ext Distress Signals 9 | . 1 3 2 . . . 3 Communications Jammed . | . . . . . . . . Distress Signals . | . . . . . . . . Times Spotted 120 | . 15 26 20 . 13 8 38 Peak Tracking Total 8 | . 7 6 7 . 8 8 8 Tactical Retreats 14 | . 1 1 . . 4 . 8 Traps | -11 -10 -9 -8 -7 -7 -6 -6 ------- Run | Yrd Mat Mat Mat Fac DSF Fac Ext Traps Triggered 10 | . 2 . . . 4 . 4 Indirectly . | . . . . . . . . Trap Hack Attempts . | . . . . . . . . Triggered . | . . . . . . . . Disarmed . | . . . . . . . . Reprogrammed . | . . . . . . . . Reused . | . . . . . . . . Traps Extracted . | . . . . . . . . Installed . | . . . . . . . . Triggered . | . . . . . . . . Machines | -11 -10 -9 -8 -7 -7 -6 -6 ---------- Run | Yrd Mat Mat Mat Fac DSF Fac Ext Machines Disabled 5 | . . 2 3 . . . . Max in Single Turn 1 | . . 1 1 . . . . Machines Repaired . | . . . . . . . . Machines Dismantled . | . . . . . . . . Machines Sabotaged . | . . . . . . . . Overloaded Fab Kills . | . . . . . . . . Hacking | -11 -10 -9 -8 -7 -7 -6 -6 --------- Run | Yrd Mat Mat Mat Fac DSF Fac Ext Machines Accessed 13 | . 1 . 2 3 . . 7 Terminals 9 | . 1 . . 1 . . 7 Fabricators . | . . . . . . . . Repair Stations 1 | . . . 1 . . . . Recycling Units 1 | . . . . 1 . . . Scanalyzers 2 | . . . 1 1 . . . Garrison Access . | . . . . . . . . Total Hacks 41 | . 2 . 8 10 . . 21 Successful 25 | . 1 . 8 8 . . 8 Failed 16 | . 1 . . 2 . . 13 Catastrophic 2 | . . . . . . . 2 Database Lockouts . | . . . . . . . . Manual . | . . . . . . . . Terminals 25 | . 2 . . 2 . . 21 Fabricators . | . . . . . . . . Repair Stations 3 | . . . 3 . . . . Recycling Units 4 | . . . . 4 . . . Scanalyzers 9 | . . . 5 4 . . . Garrison Access . | . . . . . . . . Terminal Hacks 10 | . 1 . . 1 . . 8 Record 2 | . . . . . . . 2 Prototype ID Bank 2 | . . . . . . . 2 Open Door 3 | . . . . . . . 3 Open DSF 1 | . . . . 1 . . . Unreport Threat 1 | . . . . . . . 1 Zone Layout 1 | . 1 . . . . . . Fabricator Hacks . | . . . . . . . . Repair Station Hacks 3 | . . . 3 . . . . Scan Component 2 | . . . 2 . . . . Repair 1 | . . . 1 . . . . Recycling Unit Hacks 3 | . . . . 3 . . . Process 2 | . . . . 2 . . . Report Inventory 1 | . . . . 1 . . . Scanalyzer 9 | . . . 5 4 . . . Insert Component 2 | . . . . 2 . . . Analyze 2 | . . . . 2 . . . Retrieve Study 5 | . . . 5 . . . . Garrison Access Hacks . | . . . . . . . . Unauthorized Hacks . | . . . . . . . . Terminals . | . . . . . . . . Fabricators . | . . . . . . . . Repair Stations . | . . . . . . . . Recycling Units . | . . . . . . . . Scanalyzers . | . . . . . . . . Garrison Access . | . . . . . . . . Data Cores Recovered . | . . . . . . . . Used . | . . . . . . . . Hacking Detections 10 | . 1 . 1 3 . . 5 Full Trace Events 5 | . . . 1 2 . . 2 Feedback Events . | . . . . . . . . Feedback Blocked . | . . . . . . . . Robot Schematics Acquired . | . . . . . . . . Robots Built . | . . . . . . . . Authchips . | . . . . . . . . Time . | . . . . . . . . Total Robot Build Rating . | . . . . . . . . Part Schematics Acquired 2 | . . . . 2 . . . Parts Built . | . . . . . . . . Authchips . | . . . . . . . . Time . | . . . . . . . . Total Part Build Rating . | . . . . . . . . Part Studies Acquired 5 | . . . 5 . . . . Parts Repaired 1 | . . . 1 . . . . Time 38 | . . . 38 . . . . Parts Recycled . | . . . . . . . . Recycled Matter 18 | . . . . 18 . . . Retrieved Matter . | . . . . . . . . Retrieved Components . | . . . . . . . . Parts Scanalyzed 2 | . . . . 2 . . . Part Schematics Acquired 2 | . . . . 2 . . . Parts Damaged . | . . . . . . . . Bothacking | -11 -10 -9 -8 -7 -7 -6 -6 ------------ Run | Yrd Mat Mat Mat Fac DSF Fac Ext Used RIF Installer . | . . . . . . . . Robots Hacked . | . . . . . . . . Non-combat . | . . . . . . . . Combat . | . . . . . . . . Robot Hacks Applied . | . . . . . . . . Relay Couplers Released . | . . . . . . . . Fabnet Peak Effective % . | . . . . . . . . Robots Rewired . | . . . . . . . . Allies Hacked . | . . . . . . . . Hacks Repelled . | . . . . . . . . Allies | -11 -10 -9 -8 -7 -7 -6 -6 -------- Run | Yrd Mat Mat Mat Fac DSF Fac Ext Total Allies 5 | . . . . . . . 5 Largest Group 2 | . . . . . . . 2 Highest-Rated Group 190 | . . . . . . . 190 Highest-Rated Ally 159 | . . . . . . . 159 Total Orders . | . . . . . . . . Ally Attacks 89 | . . . . . . . 89 Total Damage 2279 | . . . . . . . 2279 Kills 18 | . . . . . . . 18 Allies Corrupted . | . . . . . . . . Allies Melted . | . . . . . . . . Intel | -11 -10 -9 -8 -7 -7 -6 -6 ------- Run | Yrd Mat Mat Mat Fac DSF Fac Ext Active Infowar (turns) 1621 | . . 379 752 226 264 . . Sensors 1397 | . . 155 752 226 264 . . Terrain 44 | . . 44 . . . . . Structural 183 | . . 183 . . . . . ECM 1 | . . . . . 1 . . Robot Analysis Total . | . . . . . . . . Derelict Logs Recovered . | . . . . . . . . Drone Launches . | . . . . . . . . Drone Recoveries . | . . . . . . . . Exploration | -11 -10 -9 -8 -7 -7 -6 -6 ------------- Run | Yrd Mat Mat Mat Fac DSF Fac Ext Turns Passed 3087 | 58 484 383 752 226 281 58 845 Spaces Moved 2029 | 40 279 169 323 129 140 114 835 Core 362 | 11 . . . . 72 114 165 Treads 555 | . . 35 323 129 68 . . Legs 533 | 29 279 134 . . . . 91 Wheels . | . . . . . . . . Hover 579 | . . . . . . . 579 Flight . | . . . . . . . . Fastest Speed 48 | 50 120 120 160 160 50 50 48 Average Speed 100 | 119 120 133 160 160 117 50 57 Slowest Speed 850 | 200 120 240 160 160 850 50 300 Overloaded Moves . | . . . . . . . . Propulsion Burnouts . | . . . . . . . . Robots Hopped . | . . . . . . . . Potential Cave-ins . | . . . . . . . . Cave-ins Triggered . | . . . . . . . . Exploration Rate (%) 34 | 3 53 23 32 3 91 5 62 Regions Visited 7 Branch Regions 1 Pre-discovered Areas . | . . . . . . . . Known Exits Taken 3 | . . 1 1 1 . . . Unknown Exits Taken 3 | 1 1 . . . . 1 . Scrap Searched . | . . . . . . . . Spaces Dug . | . . . . . . . . Terrain Destroyed 112 | . . 92 17 . 2 . 1 Melee . | . . . . . . . . Projectile 20 | . . . 17 . 2 . 1 AOE 92 | . . 92 . . . . . Terrain Rammed . | . . . . . . . . Walls Destroyed . | . . . . . . . . Machines Disabled . | . . . . . . . . Actions | -11 -10 -9 -8 -7 -7 -6 -6 --------- Run | Yrd Mat Mat Mat Fac DSF Fac Ext Total 2720 | 47 361 255 465 148 232 114 1098 Wait 276 | . 33 . 45 17 37 . 144 Move 2022 | 39 278 168 322 128 139 113 835 Hop . | . . . . . . . . Pick Up 37 | 1 5 12 9 . 4 1 5 Fast Attach 29 | 6 2 3 3 1 . . 14 Attach 18 | . 1 4 3 1 5 . 4 Detach 3 | . . . . . . . 3 Swap 31 | 1 3 12 9 . 1 . 5 Drop 33 | . 1 11 13 . 4 . 4 Fire 197 | . 38 45 61 . 17 . 36 Melee 17 | . . . . . . . 17 Ram . | . . . . . . . . Kick . | . . . . . . . . Crush 1 | . . . . 1 . . . Escape Stasis 56 | . . . . . 25 . 31 Rewire . | . . . . . . . . Trap . | . . . . . . . . Miscellaneous . | . . . . . . . . Route ------- -11/Scrapyard -10/Materials (discovered 3 exits: [*Mat] / [*Min x2]) -9/Materials -8/Materials -7/Factory -7/DSF -6/Factory -6/Extension History --------- Turn | Location | Event 17 | -11/Scrapyard | Discovered new exit (range 15) 59 | -11/Scrapyard | Entered Materials 107 | -10/Materials | Discovered new exit (range 15) 315 | -10/Materials | Build established: Mutant 346 | -10/Materials | Discovered new exit (range 8) 532 | -10/Materials | Discovered new exit (range 10) 543 | -10/Materials | Entered another Materials area 543 | -9/Materials | Evolved 2 slots: Propulsion x1, Utility x1 856 | -9/Materials | Discovered new exit (range 16) 925 | -9/Materials | Identified exit to Materials 926 | -9/Materials | Entered another Materials area 926 | -8/Materials | Evolved 2 slots: Propulsion x1, Utility x1 1273 | -8/Materials | Destroyed 7 combat bots 1422 | -8/Materials | Repaired Hvy. Assault Cannon 1508 | -8/Materials | Discovered new exit (range 16) 1535 | -8/Materials | Identified exit to Factory 1678 | -8/Materials | Entered Factory 1678 | -7/Factory | Evolved 2 slots: Utility x2 1901 | -7/Factory | Identified exit to DSF 1904 | -7/Factory | Entered DSF 2004 | -7/DSF | Additional patrols routed to DSF 2126 | -7/DSF | Released all parts (4) 2159 | -7/DSF | Core integrity fell below 50% 2164 | -7/DSF | Discovered new exit (range 15) 2176 | -7/DSF | Lost 7 parts (1p1n4u1w) 2185 | -7/DSF | Entered Factory 2185 | -6/Factory | Evolved 2 slots: Utility x2 2238 | -6/Factory | Discovered new exit (range 11) 2243 | -6/Factory | Entered Extension 2378 | -6/Extension | Rescued a captive Derelict 2378 | -6/Extension | Rescued a captive Derelict 2560 | -6/Extension | Rescued a captive Derelict 2561 | -6/Extension | Rescued a captive Derelict 2595 | -6/Extension | Rescued A7 2643 | -6/Extension | Spotted B-75 Beast 2768 | -6/Extension | Disrupted transfer network 2828 | -6/Extension | Spotted B-75 Beast 3058 | -6/Extension | Extracted ID and sensor layout for unrecognized location from A7's data core 3076 | -6/Extension | Core integrity fell below 50% 3081 | -6/Extension | Released all parts (2) 3086 | -6/Extension | Core integrity fell below 20% 3088 | -6/Extension | Destroyed by S-27 Virus with Autogun Last Messages --------------- 03069_ Gatling Laser temporarily disabled. 03071_ VTOL Module melted. 03071_ S-27 Virus destroyed. 03071_ K-01 Serf destroyed. 03071_ C-30 ARC bursts open, deploying its payload. 03071_ S-27 Virus unfolds itself. 03071_ Imp. Light Armor Plating destroyed. 03072_ Lyr. Medium Armor Plating destroyed. 03073_ Imp. Gravmag System destroyed. 03075_ Fission Core destroyed. 03075_ S-27 Virus destroyed. 03077_ Overheating: System interference. 03077_ Gatling Laser temporarily disabled. 03077_ Imp. Weapon Shielding destroyed. 03078_ Gatling Laser destroyed. 03080_ Com. Battery destroyed. 03081_ Released ECM Suite. 03081_ Released Broken Adv. Signal Interpreter. 03082_ Critical hit (Burn: +37). Map ----- +----------------------------------------------------+ | ?????????????????????????????????????????????????? | | ?????????????????????????????????????????????????? | | ?????????????????????????????????????????????????? | | ?????????????????????????????????????????????????? | | ?????????????????????????????????????????????????? | | ?????????????????????????????????????????????????? | | ?????????????????????????????????????????????????? | | ?????????????????????????????????????????????????? | | ?????????????????????????????????????????????????? | | ?????????????????????????????????????????????????? | | ?????????????????????????????????????????????????? | | ?????????????????????????????????????????????????? | | ?????????????????????????????????????????????????? | | ?????????????????????????????????????????????????? | | ?????????????????????????????????????????????????? | | ?????????????????????????????????????????????????? | | ?????????????????????????????????????????????????? | | ?????????????????????????????????????????????????? | | ?????????????????????????????????????????????????? | | ?????????????????????????????????????????????????? | | ?????????????????????????????????????????????????? | | ?????????????????????????????????????????????????? | | ?????????????????????????????????????????????????? | | #######################################??????????? | | [s ????????? | | ! [% =%s@ ????????? | | %= % % s% u ????????? | | % %%= s [ s ????????? | | %[ !*g g t R?????????? | | ################;;;;;###################?????????? | | ???????????????#######???????????????????????????? | | ?????????????????????????????????????????????????? | | ?????????????????????????????????????????????????? | | ?????????????????????????????????????????????????? | | ?????????????????????????????????????????????????? | | ?????????????????????????????????????????????????? | | ?????????????????????????????????????????????????? | | | | | | | | | | | | | | | | | | | | | | | | | | | +----------------------------------------------------+ Best States ------------- Heat Dissipation 56 Energy Generation 18 Energy Capacity 510 Matter Stores 300 Matter Capacity 300 Sight Range 16 Robot Scan Range 15 Terrain Scan Range 14 Terrain Scan Density 10 Armor Coverage 375 Weapon Shielding 66 Evasion (%) 55 Targeting Accuracy 8 Recoil Reduction 4 Item Schematics ----------------- Imp. Sensor Array | -7/Factory | Scanalyzed Hvy. Assault Cannon | -7/Factory | Scanalyzed Robot Schematics ------------------ None Fabricated ------------ Nothing Repaired ---------- Hvy. Assault Cannon | 32% | -8/Materials Studied --------- Hvy. Assault Cannon | -8/Materials | Hacked Lgt. Nuclear Core | -8/Materials | Hacked Carbon-fiber Leg | -8/Materials | Hacked Imp. Treads | -8/Materials | Hacked Lgt. Treads | -8/Materials | Hacked Alien Tech Used ----------------- None Achievements -------------- Prison Break Well Done Challenges ------------ None Game ------ Seed AlloyShockboltMaul Manual? 0 Play Time 01:08:09 Cumulative 11.8 hours Start 2026.01.28 @ 21:34:31 End 2026.01.28 @ 22:49:14 Sessions 1 Manual Loads 0 Difficulty Rogue Special Mode None Game No. 12 Rogue 12 Adventurer 0 Explorer 0 Win Type - Total 0 Types 0/0/0/0/0/0/0/0/0/0 Lore% 9 Gallery% 13 Achievement% 13 Wizard Run 0 Options --------- Layout 1 ASCII 0 Keyboard 0 Movement Mouse Keybinds 1 Fullscreen 1 Font 24/Smallcaps Map View 50x35 Zoom Use 0% Tactical HUD 1 Map Filters NONE Filters NONE Steam 1 RUN: b947b05e-3296-4b7d-85d2-825b1f12163d